[Event "Titled Tuesday Blitz August 08 Early 2023"]
[White "Tharushi, T H D Niklesha"]
[Black "Rietze, Clemens, Dr."]
[WhiteFideId "9918264"]
[BlackFideId "24620351"]
[WhiteElo "2057"]
[BlackElo "2436"]
[Result "1-0"]
[Round "7"]
[TimeControl "180+1"]
[Date "2023.08.08"]
[WhiteClock "0:00:12"]
[BlackClock "0:00:00"]
[Board "161"]

1. d4 {[%clk 0:02:55]}  Nf6 {[%clk 0:02:59]} 2. c4 {[%clk 0:02:55]}  g6 {[%clk 0:03:00]} 3. Nc3 {[%clk 0:02:54]}  Bg7 {[%clk 0:03:00]} 4. e4 {[%clk 0:02:54]}  d6 {[%clk 0:03:01]} 5. Nf3 {[%clk 0:02:54]}  O-O {[%clk 0:03:01]} 6. Be2 {[%clk 0:02:54]}  Na6 {[%clk 0:03:01]} 7. Be3 {[%clk 0:02:52]}  e5 {[%clk 0:02:58]} 8. O-O {[%clk 0:02:52]}  Ng4 {[%clk 0:02:55]} 9. Bg5 {[%clk 0:02:51]}  f6 {[%clk 0:02:55]} 10. Bc1 {[%clk 0:02:46]}  Nh6 {[%clk 0:02:53]} 11. a3 {[%clk 0:02:42]}  c6 {[%clk 0:02:47]} 12. d5 {[%clk 0:02:38]}  Nf7 {[%clk 0:02:44]} 13. b4 {[%clk 0:02:35]}  f5 {[%clk 0:02:24]} 14. Ne1 {[%clk 0:02:22]}  c5 {[%clk 0:02:13]} 15. b5 {[%clk 0:02:19]}  Nb8 {[%clk 0:02:04]} 16. a4 {[%clk 0:02:18]}  Nd7 {[%clk 0:01:59]} 17. a5 {[%clk 0:02:13]}  Nf6 {[%clk 0:01:59]} 18. f3 {[%clk 0:02:08]}  f4 {[%clk 0:01:57]} 19. Nd3 {[%clk 0:01:56]}  g5 {[%clk 0:01:56]} 20. Nf2 {[%clk 0:01:56]}  h5 {[%clk 0:01:56]} 21. g3 {[%clk 0:01:37]}  fxg3 {[%clk 0:01:44]} 22. hxg3 {[%clk 0:01:37]}  Kh8 {[%clk 0:01:38]} 23. Be3 {[%clk 0:01:32]}  Rg8 {[%clk 0:01:36]} 24. Qd2 {[%clk 0:01:30]}  Bh6 {[%clk 0:01:35]} 25. Kg2 {[%clk 0:01:23]}  Rg6 {[%clk 0:01:27]} 26. a6 {[%clk 0:01:19]}  b6 {[%clk 0:01:26]} 27. Rh1 {[%clk 0:01:18]}  Qg8 {[%clk 0:01:25]} 28. Rag1 {[%clk 0:01:16]}  Bd7 {[%clk 0:01:24]} 29. Kf1 {[%clk 0:01:16]}  Qg7 {[%clk 0:01:24]} 30. f4 {[%clk 0:01:11]}  gxf4 {[%clk 0:01:07]} 31. gxf4 {[%clk 0:01:11]}  exf4 {[%clk 0:01:02]} 32. Bxf4 {[%clk 0:01:11]}  Rg8 {[%clk 0:00:55]} 33. Rxg6 {[%clk 0:00:58]}  Qxg6 {[%clk 0:00:56]} 34. Qe3 {[%clk 0:00:50]}  Rg7 {[%clk 0:00:26]} 35. Ke1 {[%clk 0:00:48]}  Bxf4 {[%clk 0:00:23]} 36. Qxf4 {[%clk 0:00:48]}  Ne5 {[%clk 0:00:23]} 37. Nh3 {[%clk 0:00:39]}  Bxh3 {[%clk 0:00:12]} 38. Rxh3 {[%clk 0:00:39]}  Qg1+ {[%clk 0:00:12]} 39. Kd2 {[%clk 0:00:39]}  Qd4+ {[%clk 0:00:11]} 40. Kc2 {[%clk 0:00:39]}  Ng6 {[%clk 0:00:05]} 41. Qh6+ {[%clk 0:00:32]}  Kg8 {[%clk 0:00:05]} 42. Bxh5 {[%clk 0:00:29]}  Nxh5 {[%clk 0:00:05]} 43. Rxh5 {[%clk 0:00:29]}  Qxc4 {[%clk 0:00:03]} 44. Qg5 {[%clk 0:00:22]}  Qd4 {[%clk 0:00:01]} 45. Qd8+ {[%clk 0:00:21]}  Nf8 {[%clk 0:00:02]} 46. Rg5 {[%clk 0:00:18]}  c4 {[%clk 0:00:01]} 47. Rxg7+ {[%clk 0:00:17]}  Qxg7 {[%clk 0:00:00]} 48. Qc8 {[%clk 0:00:12]} 1-0


[Site "https://www.chess.com"]

[Event "Titled Tuesday Blitz August 08 Early 2023"]
[White "Nithyalakshmi, Sivanesan"]
[Black "Vaibhav, Suri"]
[WhiteFideId "5706955"]
[BlackFideId "5045185"]
[WhiteElo "2340"]
[BlackElo "2716"]
[Result "0-1"]
[Round "7"]
[TimeControl "180+1"]
[Date "2023.08.08"]
[WhiteClock "0:00:00"]
[BlackClock "0:00:43"]
[Board "162"]

1. e4 {[%clk 0:02:56]}  e5 {[%clk 0:02:55]} 2. Nf3 {[%clk 0:02:53]}  Nc6 {[%clk 0:02:53]} 3. d4 {[%clk 0:02:51]}  exd4 {[%clk 0:02:51]} 4. Nxd4 {[%clk 0:02:51]}  Bb4+ {[%clk 0:02:47]} 5. c3 {[%clk 0:02:49]}  Bc5 {[%clk 0:02:48]} 6. Be3 {[%clk 0:02:42]}  Bb6 {[%clk 0:02:48]} 7. Bd3 {[%clk 0:02:34]}  Nf6 {[%clk 0:02:46]} 8. Nd2 {[%clk 0:02:28]}  Nxd4 {[%clk 0:02:42]} 9. cxd4 {[%clk 0:02:27]}  d5 {[%clk 0:02:42]} 10. e5 {[%clk 0:02:17]}  Ng4 {[%clk 0:02:41]} 11. Qe2 {[%clk 0:02:05]}  O-O {[%clk 0:02:36]} 12. O-O {[%clk 0:01:55]}  f6 {[%clk 0:02:15]} 13. f4 {[%clk 0:01:19]}  fxe5 {[%clk 0:01:43]} 14. fxe5 {[%clk 0:01:18]}  Be6 {[%clk 0:01:43]} 15. h3 {[%clk 0:01:14]}  Nxe3 {[%clk 0:01:39]} 16. Qxe3 {[%clk 0:01:15]}  Qh4 {[%clk 0:01:36]} 17. Nb3 {[%clk 0:01:12]}  a5 {[%clk 0:01:29]} 18. a4 {[%clk 0:01:09]}  g6 {[%clk 0:01:28]} 19. Rae1 {[%clk 0:01:02]}  Rxf1+ {[%clk 0:01:19]} 20. Rxf1 {[%clk 0:01:01]}  Rf8 {[%clk 0:01:20]} 21. Rxf8+ {[%clk 0:00:56]}  Kxf8 {[%clk 0:01:20]} 22. Qf2+ {[%clk 0:00:50]}  Qxf2+ {[%clk 0:01:21]} 23. Kxf2 {[%clk 0:00:51]}  Bd7 {[%clk 0:01:21]} 24. Bb5 {[%clk 0:00:46]}  Bxb5 {[%clk 0:00:54]} 25. axb5 {[%clk 0:00:47]}  a4 {[%clk 0:00:54]} 26. Nc5 {[%clk 0:00:48]}  Bxc5 {[%clk 0:00:55]} 27. dxc5 {[%clk 0:00:48]}  Ke7 {[%clk 0:00:55]} 28. Ke3 {[%clk 0:00:48]}  Ke6 {[%clk 0:00:56]} 29. Kd4 {[%clk 0:00:49]}  c6 {[%clk 0:00:54]} 30. b6 {[%clk 0:00:37]}  h5 {[%clk 0:00:48]} 31. h4 {[%clk 0:00:17]}  Kf5 {[%clk 0:00:48]} 32. g3 {[%clk 0:00:14]}  Ke6 {[%clk 0:00:48]} 33. Kc3 {[%clk 0:00:13]}  Kxe5 {[%clk 0:00:47]} 34. Kb4 {[%clk 0:00:13]}  d4 {[%clk 0:00:41]} 35. Kxa4 {[%clk 0:00:12]}  d3 {[%clk 0:00:42]} 36. Kb3 {[%clk 0:00:00]}  Kd4 {[%clk 0:00:43]} 0-1


[Site "https://www.chess.com"]

[Event "Titled Tuesday Blitz August 08 Early 2023"]
[White "Osinovsky, Stepan"]
[Black "Parpiev, Isaak"]
[WhiteFideId "4157354"]
[BlackFideId "34281576"]
[WhiteElo "2320"]
[BlackElo "2525"]
[Result "0-1"]
[Round "7"]
[TimeControl "180+1"]
[Date "2023.08.08"]
[WhiteClock "0:00:46"]
[BlackClock "0:01:32"]
[Board "166"]

1. e4 {[%clk 0:03:00]}  c6 {[%clk 0:02:59]} 2. d3 {[%clk 0:02:59]}  d5 {[%clk 0:03:00]} 3. Nd2 {[%clk 0:02:59]}  e5 {[%clk 0:03:00]} 4. Ngf3 {[%clk 0:02:59]}  Bd6 {[%clk 0:02:59]} 5. d4 {[%clk 0:02:54]}  exd4 {[%clk 0:02:56]} 6. e5 {[%clk 0:02:54]}  Bc7 {[%clk 0:02:53]} 7. Bd3 {[%clk 0:02:50]}  Ne7 {[%clk 0:02:47]} 8. h4 {[%clk 0:02:48]}  Nd7 {[%clk 0:02:43]} 9. Qe2 {[%clk 0:02:43]}  Ng6 {[%clk 0:02:32]} 10. Nb3 {[%clk 0:02:13]}  Ngxe5 {[%clk 0:02:26]} 11. Nbxd4 {[%clk 0:02:12]}  O-O {[%clk 0:02:06]} 12. Ng5 {[%clk 0:01:33]}  Nxd3+ {[%clk 0:02:02]} 13. Qxd3 {[%clk 0:01:33]}  Re8+ {[%clk 0:01:57]} 14. Kf1 {[%clk 0:01:32]}  Nf6 {[%clk 0:01:57]} 15. b3 {[%clk 0:01:24]}  c5 {[%clk 0:01:53]} 16. Ndf3 {[%clk 0:01:11]}  d4 {[%clk 0:01:44]} 17. c3 {[%clk 0:00:55]}  dxc3 {[%clk 0:01:40]} 18. Qxc3 {[%clk 0:00:56]}  Qd1+ {[%clk 0:01:32]} 19. Ne1 {[%clk 0:00:54]}  Qe2+ {[%clk 0:01:31]} 20. Kg1 {[%clk 0:00:46]}  Qxe1+ {[%clk 0:01:32]} 0-1


[Site "https://www.chess.com"]

[Event "Titled Tuesday Blitz August 08 Early 2023"]
[White "UgarteCesar"]
[Black "marik_spb"]
[WhiteElo "2295"]
[BlackElo "2474"]
[Result "0-1"]
[Round "7"]
[TimeControl "180+1"]
[Date "2023.08.08"]
[WhiteClock "0:00:00"]
[BlackClock "0:00:09"]
[Board "171"]

1. d4 {[%clk 0:03:00]}  Nf6 {[%clk 0:02:51]} 2. Bf4 {[%clk 0:03:01]}  g6 {[%clk 0:02:50]} 3. e3 {[%clk 0:03:01]}  Bg7 {[%clk 0:02:50]} 4. h3 {[%clk 0:03:01]}  O-O {[%clk 0:02:51]} 5. Nf3 {[%clk 0:03:02]}  b6 {[%clk 0:02:50]} 6. Be2 {[%clk 0:03:02]}  Bb7 {[%clk 0:02:50]} 7. Nbd2 {[%clk 0:03:03]}  c5 {[%clk 0:02:51]} 8. c3 {[%clk 0:03:03]}  d6 {[%clk 0:02:49]} 9. a4 {[%clk 0:03:02]}  Nbd7 {[%clk 0:02:50]} 10. O-O {[%clk 0:03:03]}  Ne4 {[%clk 0:02:49]} 11. Nxe4 {[%clk 0:03:01]}  Bxe4 {[%clk 0:02:49]} 12. Nd2 {[%clk 0:03:01]}  Bb7 {[%clk 0:02:48]} 13. Bf3 {[%clk 0:03:01]}  Qc7 {[%clk 0:02:46]} 14. Bh2 {[%clk 0:03:00]}  e5 {[%clk 0:02:42]} 15. Bxb7 {[%clk 0:02:58]}  Qxb7 {[%clk 0:02:42]} 16. Nc4 {[%clk 0:02:58]}  exd4 {[%clk 0:02:26]} 17. Nxd6 {[%clk 0:02:52]}  Qd5 {[%clk 0:02:26]} 18. cxd4 {[%clk 0:02:39]}  cxd4 {[%clk 0:02:25]} 19. exd4 {[%clk 0:02:35]}  Qxd4 {[%clk 0:02:13]} 20. Rb1 {[%clk 0:02:22]}  Nc5 {[%clk 0:02:11]} 21. Qf3 {[%clk 0:02:15]}  Rad8 {[%clk 0:02:06]} 22. b4 {[%clk 0:02:02]}  Nxa4 {[%clk 0:01:56]} 23. Rfd1 {[%clk 0:02:00]}  Qf6 {[%clk 0:01:48]} 24. Qxf6 {[%clk 0:01:47]}  Bxf6 {[%clk 0:01:49]} 25. Ne4 {[%clk 0:01:48]}  Bg7 {[%clk 0:01:40]} 26. b5 {[%clk 0:01:41]}  Rfe8 {[%clk 0:01:33]} 27. Nd6 {[%clk 0:01:35]}  Nc3 {[%clk 0:01:17]} 28. Nxe8 {[%clk 0:01:32]}  Nxd1 {[%clk 0:01:07]} 29. Nxg7 {[%clk 0:01:26]}  Kxg7 {[%clk 0:01:08]} 30. Ra1 {[%clk 0:01:24]}  Nc3 {[%clk 0:00:57]} 31. Bc7 {[%clk 0:01:14]}  Rd1+ {[%clk 0:00:48]} 32. Rxd1 {[%clk 0:01:10]}  Nxd1 {[%clk 0:00:49]} 33. Bb8 {[%clk 0:01:11]}  Kf6 {[%clk 0:00:46]} 34. Bxa7 {[%clk 0:01:11]}  Nc3 {[%clk 0:00:46]} 35. Bxb6 {[%clk 0:01:11]}  Nxb5 {[%clk 0:00:47]} 36. Be3 {[%clk 0:01:08]}  Ke6 {[%clk 0:00:45]} 37. g4 {[%clk 0:01:07]}  Kd5 {[%clk 0:00:45]} 38. Kg2 {[%clk 0:01:08]}  Ke4 {[%clk 0:00:44]} 39. Kg3 {[%clk 0:01:07]}  Nc3 {[%clk 0:00:40]} 40. Ba7 {[%clk 0:00:56]}  Ne2+ {[%clk 0:00:37]} 41. Kg2 {[%clk 0:00:55]}  Nd4 {[%clk 0:00:21]} 42. Kg3 {[%clk 0:00:45]}  Nf3 {[%clk 0:00:20]} 43. Be3 {[%clk 0:00:41]}  Ne5 {[%clk 0:00:10]} 44. Ba7 {[%clk 0:00:38]}  Nf3 {[%clk 0:00:10]} 45. Be3 {[%clk 0:00:38]}  f6 {[%clk 0:00:11]} 46. Ba7 {[%clk 0:00:35]}  Nd2 {[%clk 0:00:09]} 47. Bb6 {[%clk 0:00:28]}  f5 {[%clk 0:00:04]} 48. gxf5 {[%clk 0:00:27]}  gxf5 {[%clk 0:00:05]} 49. Ba7 {[%clk 0:00:25]}  Nf3 {[%clk 0:00:05]} 50. Be3 {[%clk 0:00:23]}  Ne5 {[%clk 0:00:04]} 51. Ba7 {[%clk 0:00:21]}  Ng6 {[%clk 0:00:03]} 52. f3+ {[%clk 0:00:15]}  Kd3 {[%clk 0:00:02]} 53. f4 {[%clk 0:00:12]}  h5 {[%clk 0:00:03]} 54. Bb8 {[%clk 0:00:10]}  Ke4 {[%clk 0:00:03]} 55. h4 {[%clk 0:00:10]}  Ne7 {[%clk 0:00:03]} 56. Bc7 {[%clk 0:00:10]}  Nd5 {[%clk 0:00:03]} 57. Be5 {[%clk 0:00:10]}  Nb4 {[%clk 0:00:03]} 58. Bb8 {[%clk 0:00:10]}  Nd3 {[%clk 0:00:03]} 59. Bd6 {[%clk 0:00:09]}  Nc1 {[%clk 0:00:04]} 60. Bb8 {[%clk 0:00:09]}  Ne2+ {[%clk 0:00:04]} 61. Kh3 {[%clk 0:00:06]}  Nxf4+ {[%clk 0:00:05]} 62. Kg3 {[%clk 0:00:04]}  Ng6 {[%clk 0:00:06]} 63. Kh3 {[%clk 0:00:04]}  Kf3 {[%clk 0:00:05]} 64. Bc7 {[%clk 0:00:03]}  Nf4+ {[%clk 0:00:05]} 65. Kh2 {[%clk 0:00:03]}  Kg4 {[%clk 0:00:06]} 66. Kg1 {[%clk 0:00:01]}  Ng6 {[%clk 0:00:07]} 67. Kh2 {[%clk 0:00:01]}  Nxh4 {[%clk 0:00:08]} 68. Kg1 {[%clk 0:00:01]}  Nf3+ {[%clk 0:00:08]} 69. Kg2 {[%clk 0:00:00]}  h4 {[%clk 0:00:09]} 0-1


[Site "https://www.chess.com"]

[Event "Titled Tuesday Blitz August 08 Early 2023"]
[White "Vivas Zamora, Fabian Ernesto"]
[Black "Konenkin, Dmitry"]
[WhiteFideId "3902480"]
[BlackFideId "4185781"]
[WhiteElo "2465"]
[BlackElo "2287"]
[Result "0-1"]
[Round "7"]
[TimeControl "180+1"]
[Date "2023.08.08"]
[WhiteClock "0:00:00"]
[BlackClock "0:00:03"]
[Board "172"]

1. e4 {[%clk 0:02:59]}  d6 {[%clk 0:02:56]} 2. d4 {[%clk 0:02:59]}  Nf6 {[%clk 0:02:56]} 3. Nc3 {[%clk 0:02:59]}  e5 {[%clk 0:02:57]} 4. dxe5 {[%clk 0:02:53]}  dxe5 {[%clk 0:02:58]} 5. Qxd8+ {[%clk 0:02:54]}  Kxd8 {[%clk 0:02:59]} 6. Bc4 {[%clk 0:02:54]}  Be6 {[%clk 0:02:59]} 7. Bxe6 {[%clk 0:02:53]}  fxe6 {[%clk 0:03:00]} 8. Bg5 {[%clk 0:02:38]}  Bd6 {[%clk 0:02:59]} 9. f3 {[%clk 0:02:25]}  Nd7 {[%clk 0:02:58]} 10. Nb1 {[%clk 0:02:18]}  Ke7 {[%clk 0:02:59]} 11. Nd2 {[%clk 0:02:18]}  a6 {[%clk 0:02:55]} 12. Nh3 {[%clk 0:02:18]}  b5 {[%clk 0:02:55]} 13. a4 {[%clk 0:02:15]}  h6 {[%clk 0:02:52]} 14. Be3 {[%clk 0:02:08]}  g5 {[%clk 0:02:52]} 15. Nf2 {[%clk 0:02:08]}  Nh5 {[%clk 0:02:50]} 16. g3 {[%clk 0:02:02]}  Rhf8 {[%clk 0:02:41]} 17. Ng4 {[%clk 0:01:59]}  Bb4 {[%clk 0:02:06]} 18. c3 {[%clk 0:01:55]}  Bc5 {[%clk 0:02:05]} 19. Ke2 {[%clk 0:01:51]}  Kf7 {[%clk 0:01:44]} 20. Nxh6+ {[%clk 0:01:48]}  Kg6 {[%clk 0:01:44]} 21. Ng4 {[%clk 0:01:48]}  Nhf6 {[%clk 0:01:26]} 22. Bxc5 {[%clk 0:01:45]}  Nxc5 {[%clk 0:01:24]} 23. Nxe5+ {[%clk 0:01:45]}  Kg7 {[%clk 0:01:22]} 24. axb5 {[%clk 0:01:44]}  axb5 {[%clk 0:01:21]} 25. Nd3 {[%clk 0:01:41]}  Na4 {[%clk 0:01:15]} 26. Nb3 {[%clk 0:01:29]}  Nd7 {[%clk 0:01:11]} 27. Nd4 {[%clk 0:01:27]}  Kf6 {[%clk 0:01:02]} 28. Nxb5 {[%clk 0:01:25]}  c5 {[%clk 0:00:41]} 29. Nd6 {[%clk 0:01:19]}  Rfb8 {[%clk 0:00:38]} 30. Nc4 {[%clk 0:01:17]}  Ndb6 {[%clk 0:00:27]} 31. Nxb6 {[%clk 0:01:14]}  Rxb6 {[%clk 0:00:28]} 32. Kd2 {[%clk 0:01:10]}  c4 {[%clk 0:00:23]} 33. Nb4 {[%clk 0:01:08]}  Rd8+ {[%clk 0:00:24]} 34. Kc2 {[%clk 0:01:03]}  Nc5 {[%clk 0:00:25]} 35. Rhd1 {[%clk 0:01:00]}  Rh8 {[%clk 0:00:24]} 36. Rh1 {[%clk 0:00:43]}  g4 {[%clk 0:00:21]} 37. fxg4 {[%clk 0:00:33]}  Nxe4 {[%clk 0:00:21]} 38. h4 {[%clk 0:00:32]}  Nxg3 {[%clk 0:00:20]} 39. Rh3 {[%clk 0:00:28]}  Ne4 {[%clk 0:00:20]} 40. Rf1+ {[%clk 0:00:28]}  Ke5 {[%clk 0:00:18]} 41. h5 {[%clk 0:00:19]}  Rb7 {[%clk 0:00:18]} 42. Re3 {[%clk 0:00:18]}  Rg7 {[%clk 0:00:14]} 43. Na6 {[%clk 0:00:10]}  Rxg4 {[%clk 0:00:12]} 44. Nc5 {[%clk 0:00:11]}  Rxh5 {[%clk 0:00:12]} 45. Rfe1 {[%clk 0:00:09]}  Rh2+ {[%clk 0:00:12]} 46. Kb1 {[%clk 0:00:09]}  Rhh4 {[%clk 0:00:11]} 47. Ka2 {[%clk 0:00:09]}  Kd5 {[%clk 0:00:11]} 48. Nxe4 {[%clk 0:00:05]}  Rxe4 {[%clk 0:00:12]} 49. Ka3 {[%clk 0:00:03]}  Rxe3 {[%clk 0:00:10]} 50. Rxe3 {[%clk 0:00:04]}  Rh2 {[%clk 0:00:08]} 51. Re1 {[%clk 0:00:02]}  e5 {[%clk 0:00:07]} 52. Rd1+ {[%clk 0:00:02]}  Ke4 {[%clk 0:00:08]} 53. Kb4 {[%clk 0:00:02]}  Rxb2+ {[%clk 0:00:07]} 54. Kxc4 {[%clk 0:00:00]}  Kf3 {[%clk 0:00:03]} 0-1


[Site "https://www.chess.com"]

[Event "Titled Tuesday Blitz August 08 Early 2023"]
[White "GAO"]
[Black "Rios Escobar, Adan"]
[BlackFideId "3403645"]
[WhiteElo "2278"]
[BlackElo "2430"]
[Result "1-0"]
[Round "7"]
[TimeControl "180+1"]
[Date "2023.08.08"]
[WhiteClock "0:00:11"]
[BlackClock "0:00:02"]
[Board "175"]

1. Nf3 {[%clk 0:03:00]}  Nf6 {[%clk 0:02:59]} 2. g3 {[%clk 0:02:58]}  g6 {[%clk 0:03:00]} 3. Bg2 {[%clk 0:02:59]}  Bg7 {[%clk 0:03:00]} 4. O-O {[%clk 0:02:59]}  c6 {[%clk 0:03:01]} 5. b3 {[%clk 0:02:58]}  d5 {[%clk 0:03:01]} 6. Bb2 {[%clk 0:02:58]}  O-O {[%clk 0:03:00]} 7. d3 {[%clk 0:02:59]}  h6 {[%clk 0:02:56]} 8. Nbd2 {[%clk 0:02:59]}  Be6 {[%clk 0:02:56]} 9. e4 {[%clk 0:02:59]}  Qd7 {[%clk 0:02:54]} 10. e5 {[%clk 0:02:55]}  Nh7 {[%clk 0:02:52]} 11. Re1 {[%clk 0:02:55]}  Bh3 {[%clk 0:02:51]} 12. Bh1 {[%clk 0:02:55]}  Ng5 {[%clk 0:02:51]} 13. Nh4 {[%clk 0:02:45]}  Bg4 {[%clk 0:02:40]} 14. f3 {[%clk 0:02:42]}  Bh3 {[%clk 0:02:32]} 15. f4 {[%clk 0:02:20]}  Bg4 {[%clk 0:02:31]} 16. Ndf3 {[%clk 0:02:16]}  Nxf3+ {[%clk 0:02:30]} 17. Bxf3 {[%clk 0:02:16]}  h5 {[%clk 0:02:29]} 18. Bxg4 {[%clk 0:02:11]}  hxg4 {[%clk 0:02:30]} 19. Ng2 {[%clk 0:02:09]}  d4 {[%clk 0:02:07]} 20. e6 {[%clk 0:02:02]}  fxe6 {[%clk 0:01:53]} 21. Qxg4 {[%clk 0:02:02]}  Rf6 {[%clk 0:01:38]} 22. Nh4 {[%clk 0:02:01]}  Kf7 {[%clk 0:01:35]} 23. Nf3 {[%clk 0:02:00]}  Rf5 {[%clk 0:01:24]} 24. Nh4 {[%clk 0:01:45]}  Rf6 {[%clk 0:01:20]} 25. Re4 {[%clk 0:01:42]}  c5 {[%clk 0:01:20]} 26. Nf3 {[%clk 0:01:39]}  Nc6 {[%clk 0:01:17]} 27. Rae1 {[%clk 0:01:36]}  Rh8 {[%clk 0:00:57]} 28. Rxe6 {[%clk 0:01:25]}  Qd5 {[%clk 0:00:46]} 29. Ng5+ {[%clk 0:01:12]}  Kf8 {[%clk 0:00:43]} 30. Rxf6+ {[%clk 0:01:01]}  Bxf6 {[%clk 0:00:41]} 31. Ne6+ {[%clk 0:00:53]}  Kf7 {[%clk 0:00:38]} 32. Ba3 {[%clk 0:00:36]}  b6 {[%clk 0:00:38]} 33. Ng5+ {[%clk 0:00:30]}  Bxg5 {[%clk 0:00:37]} 34. fxg5 {[%clk 0:00:31]}  Kg7 {[%clk 0:00:17]} 35. Bc1 {[%clk 0:00:30]}  Rf8 {[%clk 0:00:16]} 36. Bf4 {[%clk 0:00:30]}  Rf5 {[%clk 0:00:16]} 37. Qh3 {[%clk 0:00:27]}  Qg8 {[%clk 0:00:09]} 38. Qh6+ {[%clk 0:00:27]}  Kf7 {[%clk 0:00:10]} 39. Qh3 {[%clk 0:00:24]}  Qg7 {[%clk 0:00:10]} 40. Qg2 {[%clk 0:00:25]}  Nd8 {[%clk 0:00:05]} 41. Qa8 {[%clk 0:00:19]}  Ne6 {[%clk 0:00:04]} 42. Qxa7 {[%clk 0:00:16]}  Qf8 {[%clk 0:00:03]} 43. Rf1 {[%clk 0:00:13]}  Kg8 {[%clk 0:00:02]} 44. Qxb6 {[%clk 0:00:12]}  Qg7 {[%clk 0:00:01]} 45. Qxe6+ {[%clk 0:00:12]}  Kh7 {[%clk 0:00:01]} 46. Qe4 {[%clk 0:00:12]}  Qf7 {[%clk 0:00:01]} 47. Qf3 {[%clk 0:00:12]}  e5 {[%clk 0:00:01]} 48. Qg4 {[%clk 0:00:11]}  exf4 {[%clk 0:00:01]} 49. Qh4+ {[%clk 0:00:11]}  Kg7 {[%clk 0:00:02]} 50. gxf4 {[%clk 0:00:11]}  Qd7 {[%clk 0:00:02]} 51. Qh6+ {[%clk 0:00:11]}  Kf7 {[%clk 0:00:02]} 52. Qh4 {[%clk 0:00:12]}  Kg7 {[%clk 0:00:02]} 53. Qg3 {[%clk 0:00:10]}  Qd6 {[%clk 0:00:03]} 54. Qg2 {[%clk 0:00:09]}  Qe6 {[%clk 0:00:03]} 55. Qe4 {[%clk 0:00:10]}  Qf7 {[%clk 0:00:03]} 56. Kg2 {[%clk 0:00:09]}  Kg8 {[%clk 0:00:03]} 57. Kg3 {[%clk 0:00:10]}  Kg7 {[%clk 0:00:04]} 58. h4 {[%clk 0:00:10]}  Kg8 {[%clk 0:00:04]} 59. Re1 {[%clk 0:00:11]}  Rd5 {[%clk 0:00:02]} 60. Qe8+ {[%clk 0:00:11]}  Kg7 {[%clk 0:00:02]} 61. Qxf7+ {[%clk 0:00:11]}  Kxf7 {[%clk 0:00:03]} 62. Re5 {[%clk 0:00:12]}  Rd6 {[%clk 0:00:03]} 63. Rxc5 {[%clk 0:00:11]}  Ra6 {[%clk 0:00:04]} 64. a4 {[%clk 0:00:11]}  Ke6 {[%clk 0:00:04]} 65. Re5+ {[%clk 0:00:10]}  Kf7 {[%clk 0:00:05]} 66. Rc5 {[%clk 0:00:10]}  Re6 {[%clk 0:00:05]} 67. Kf3 {[%clk 0:00:11]}  Re1 {[%clk 0:00:05]} 68. Rc4 {[%clk 0:00:10]}  Rh1 {[%clk 0:00:05]} 69. Rxd4 {[%clk 0:00:10]}  Rxh4 {[%clk 0:00:06]} 70. a5 {[%clk 0:00:11]}  Rh2 {[%clk 0:00:05]} 71. Rc4 {[%clk 0:00:11]}  Rh3+ {[%clk 0:00:05]} 72. Ke4 {[%clk 0:00:11]}  Rh1 {[%clk 0:00:06]} 73. a6 {[%clk 0:00:11]}  Re1+ {[%clk 0:00:05]} 74. Kd4 {[%clk 0:00:11]}  Re7 {[%clk 0:00:05]} 75. Rb4 {[%clk 0:00:10]}  Ke6 {[%clk 0:00:04]} 76. Rb7 {[%clk 0:00:11]}  Re8 {[%clk 0:00:04]} 77. Rb6+ {[%clk 0:00:11]}  Kf5 {[%clk 0:00:04]} 78. Rf6+ {[%clk 0:00:11]}  Kg4 {[%clk 0:00:05]} 79. Kc5 {[%clk 0:00:11]}  Rc8+ {[%clk 0:00:04]} 80. Kb6 {[%clk 0:00:12]}  Rxc2 {[%clk 0:00:04]} 81. a7 {[%clk 0:00:12]}  Ra2 {[%clk 0:00:04]} 82. Kb7 {[%clk 0:00:11]}  Ra3 {[%clk 0:00:05]} 83. a8=Q {[%clk 0:00:12]}  Rxb3+ {[%clk 0:00:05]} 84. Kc6 {[%clk 0:00:12]}  Rxd3 {[%clk 0:00:06]} 85. Qc8+ {[%clk 0:00:12]}  Kh4 {[%clk 0:00:06]} 86. Rxg6 {[%clk 0:00:12]}  Kh5 {[%clk 0:00:02]} 87. Rh6# {[%clk 0:00:11]} 1-0


[Site "https://www.chess.com"]

[Event "Titled Tuesday Blitz August 08 Early 2023"]
[White "McLaren, Brian"]
[Black "Harriott, Tyrell"]
[WhiteFideId "2604612"]
[BlackFideId "2086484"]
[WhiteElo "2277"]
[BlackElo "2419"]
[Result "0-1"]
[Round "7"]
[TimeControl "180+1"]
[Date "2023.08.08"]
[WhiteClock "0:00:56"]
[BlackClock "0:01:03"]
[Board "176"]

1. g3 {[%clk 0:02:57]}  d5 {[%clk 0:02:59]} 2. Bg2 {[%clk 0:02:57]}  e6 {[%clk 0:03:00]} 3. b3 {[%clk 0:02:56]}  f5 {[%clk 0:02:59]} 4. Bb2 {[%clk 0:02:56]}  Nf6 {[%clk 0:03:00]} 5. d3 {[%clk 0:02:56]}  Bd6 {[%clk 0:03:00]} 6. Nd2 {[%clk 0:02:56]}  O-O {[%clk 0:02:59]} 7. Ngf3 {[%clk 0:02:53]}  Nbd7 {[%clk 0:02:59]} 8. O-O {[%clk 0:02:52]}  f4 {[%clk 0:03:00]} 9. e4 {[%clk 0:02:49]}  fxe3 {[%clk 0:03:00]} 10. fxe3 {[%clk 0:02:48]}  Ng4 {[%clk 0:03:01]} 11. Qe2 {[%clk 0:02:47]}  Qe8 {[%clk 0:03:02]} 12. Nd4 {[%clk 0:02:39]}  Ngf6 {[%clk 0:02:36]} 13. c4 {[%clk 0:02:32]}  c6 {[%clk 0:02:36]} 14. Rf2 {[%clk 0:02:29]}  Ne5 {[%clk 0:02:31]} 15. h3 {[%clk 0:02:20]}  Ng6 {[%clk 0:02:28]} 16. Nf1 {[%clk 0:02:19]}  e5 {[%clk 0:02:27]} 17. Nf5 {[%clk 0:02:18]}  Bc5 {[%clk 0:02:17]} 18. cxd5 {[%clk 0:02:06]}  Nxd5 {[%clk 0:02:12]} 19. Kh2 {[%clk 0:01:49]}  Bxf5 {[%clk 0:02:02]} 20. Rxf5 {[%clk 0:01:41]}  Rxf5 {[%clk 0:02:01]} 21. e4 {[%clk 0:01:41]}  Ndf4 {[%clk 0:01:56]} 22. gxf4 {[%clk 0:01:38]}  Nxf4 {[%clk 0:01:57]} 23. Qd2 {[%clk 0:01:27]}  Rg5 {[%clk 0:01:54]} 24. Bf3 {[%clk 0:01:24]}  Bg1+ {[%clk 0:01:43]} 25. Kh1 {[%clk 0:01:23]}  Bb6 {[%clk 0:01:41]} 26. d4 {[%clk 0:01:22]}  Qd7 {[%clk 0:01:36]} 27. dxe5 {[%clk 0:01:16]}  Qxh3+ {[%clk 0:01:31]} 28. Nh2 {[%clk 0:01:14]}  Rd8 {[%clk 0:01:13]} 29. Qxf4 {[%clk 0:01:08]}  Rg3 {[%clk 0:01:04]} 30. Bg4 {[%clk 0:00:56]}  Qg2# {[%clk 0:01:03]} 0-1


[Site "https://www.chess.com"]